Workbook

Sheet Formulario
B1: Cotiza tu plan de EPS Individual 2025
B2: Aportes vigentes para la venta desde el 01/07/2025 al 31/05/2026 | J2: Confirmar | L2: Edad | M2: Parentesco | N2: Plan | O2: Modalidad de Pago
B4: ¿Qué tipo de plan EPS has tenido? | D4: 1 | J4: Plan Regular | K4: 1 | L4: 0 años | M4: Cónyuge | N4: Base | O4: Contado (1 Cuota)
J5: Plan Padres | K5: 2 | L5: 1 año | M5: Conviviente | N5: Plus | O5: Aportes 12 cuotas Débito Automático (TCEA 4%)
B6: Edad del titular: | J6: Plan Jubilados | K6: 3 | L6: 2 años | M6: Hijo | N6: Premium | O6: Aportes 12 cuotas Cuponera (TCEA 17.5%)
J7: Ninguno | K7: 4 | L7: 3 años | M7: Hija | N7: Todos | O7: Todos
B8: ¿Deseas incluir a tu familia? | D8: 2 | K8: 5 | L8: 4 años
K9: 6 | L9: 5 años
D10: Parentesco | F10: =+IFERROR(VLOOKUP(D6,K:L,2,0),"") ->  | J10: =+F10 ->  | K10: 7 | L10: 6 años
C11: Dependiente 1: | E11: Edad: | J11: =IF(D11<>"",IF(OR(D11="Hijo",D11="Hija"),D11&" "&F11,F11),"") ->  | K11: 8 | L11: 7 años | N11: =+IF(D11<>"",1,0) -> 0 | O11: =+IF(F11<>"",1,0) -> 0 | P11: =+IF(O11=N11,0,1) -> 0
C12: Dependiente 2: | E12: Edad: | J12: =IF(D12<>"",IF(OR(D12="Hijo",D12="Hija"),D12&" "&F12,F12),"") ->  | K12: 9 | L12: 8 años | N12: =+IF(D12<>"",1,0) -> 0 | O12: =+IF(F12<>"",1,0) -> 0 | P12: =+IF(O12=N12,0,1) -> 0
C13: Dependiente 3: | E13: Edad: | K13: 10 | L13: 9 años | N13: 0 | O13: 0 | P13: 0
C14: Dependiente 4: | E14: Edad: | K14: 11 | L14: 10 años | N14: 0 | O14: 0 | P14: 0
C15: Dependiente 5: | E15: Edad: | K15: 12 | L15: 11 años | N15: 0 | O15: 0 | P15: 0
C16: Dependiente 6: | E16: Edad: | K16: 13 | L16: 12 años | N16: 0 | O16: 0 | P16: 0
K17: 14 | L17: 13 años | O17: ERRORES | P17: =SUM(P11:P16) -> 0
J18: Incluir | K18: 15 | L18: 14 años
B19: Plan elegido | J19: SI | K19: 16 | L19: 15 años | N19: Base Senior
J20: NO | K20: 17 | L20: 16 años | N20: Plus Senior
C21: Modalidad de Pago | K21: 18 | L21: 17 años | N21: Todos
K22: 19 | L22: 18 años
K23: 20 | L23: 19 años
K24: 21 | L24: 20 años
B25: Resultado de la cotización | K25: 22 | L25: 21 años
K26: 23 | L26: 22 años
C27: Aporte Anual - Pago al contado (Cuponera o Débito Automático) | K27: 24 | L27: 23 años
C28: Edad | D28: Base | E28: Plus | F28: Premium | K28: 25 | L28: 24 años
K29: 26 | L29: 25 años
K30: 27 | L30: 26 años
K31: 28 | L31: 27 años
K32: 29 | L32: 28 años
K33: 30 | L33: 29 años
K34: 31 | L34: 30 años
K35: 32 | L35: 31 años
C36: Total_Pagar | D36: =SUM(D29:D35) -> 0 | E36: =SUM(E29:E35) -> 0 | F36: =SUM(F29:F35) -> 0 | K36: 33 | L36: 32 años
K37: 34 | L37: 33 años
C38: Aportes Mensuales (12 cuotas) - Débito Automático (TCEA 4%) | K38: 35 | L38: 34 años
C39: Edad | D39: Base | E39: Plus | F39: Premium | K39: 36 | L39: 35 años
K40: 37 | L40: 36 años
K41: 38 | L41: 37 años
K42: 39 | L42: 38 años
K43: 40 | L43: 39 años
K44: 41 | L44: 40 años
K45: 42 | L45: 41 años
K46: 43 | L46: 42 años
C47: Total_Pagar | D47: =SUM(D40:D46) -> 0 | E47: =SUM(E40:E46) -> 0 | F47: =SUM(F40:F46) -> 0 | K47: 44 | L47: 43 años
K48: 45 | L48: 44 años
C49: Aportes Mensuales (12 cuotas) - Cuponera (TCEA 17.5%) | K49: 46 | L49: 45 años
C50: Edad | D50: Base | E50: Plus | F50: Premium | K50: 47 | L50: 46 años
K51: 48 | L51: 47 años
K52: 49 | L52: 48 años
K53: 50 | L53: 49 años
K54: 51 | L54: 50 años
K55: 52 | L55: 51 años
K56: 53 | L56: 52 años
K57: 54 | L57: 53 años
C58: Total_Pagar | D58: =SUM(D51:D57) -> 0 | E58: 0 | F58: 0 | K58: 55 | L58: 54 años
K59: 56 | L59: 55 años
K60: 57 | L60: 56 años
K61: 58 | L61: 57 años
K62: 59 | L62: 58 años
K63: 60 | L63: 59 años
K64: 61 | L64: 60 años
K65: 62 | L65: 61 años
K66: 63 | L66: 62 años
K67: 64 | L67: 63 años
K68: 65 | L68: 64 años
K69: 66 | L69: 65 años
K70: 67 | L70: 66 años
K71: 68 | L71: 67 años
K72: 69 | L72: 68 años
K73: 70 | L73: 69 años
K74: 71 | L74: 70 años
K75: 72 | L75: 71 años
K76: 73 | L76: 72 años
K77: 74 | L77: 73 años
K78: 75 | L78: 74 años
K79: 76 | L79: 75 años
K80: 77 | L80: 76 años
K81: 78 | L81: 77 años
K82: 79 | L82: 78 años
K83: 80 | L83: 79 años
K84: 81 | L84: 80 años
K85: 82 | L85: 81 años
K86: 83 | L86: 82 años
K87: 84 | L87: 83 años
K88: 85 | L88: 84 años
K89: 86 | L89: 85 años
K90: 87 | L90: 86 años
K91: 88 | L91: 87 años
K92: 89 | L92: 88 años
K93: 90 | L93: 89 años
K94: 91 | L94: 90 años
K95: 92 | L95: 91 años
K96: 93 | L96: 92 años
K97: 94 | L97: 93 años
K98: 95 | L98: 94 años
K99: 96 | L99: 95 años
K100: 97 | L100: 96 años
K101: 98 | L101: 97 años
K102: 99 | L102: 98 años
K103: 100 | L103: 99 años
K104: 101 | L104: 100 años

Sheet Aportes 2025 (hidden)
B1: APORTES EPS INDIVIDUAL
B2: PASS MACRO | C2: Doge2729 | J2: 0.08511723434 | Q2: 0.09084241725
B3: Aporte Pago al Contado | I3: Aportes 12 cuotas Débito Automático (TCEA 4%) | P3: Aportes 12 cuotas Cuponera (TCEA 17.5%)
B4: Edad | C4: BASE | D4: PLUS | E4: PREMIUM | F4: BASE SENIOR | G4: PLUS SENIOR | I4: Edad | J4: BASE | K4: PLUS | L4: PREMIUM | M4: BASE SENIOR | N4: PLUS SENIOR | P4: Edad | Q4: BASE | R4: PLUS | S4: PREMIUM | T4: BASE SENIOR | U4: PLUS SENIOR
B5: Hijo 0 años | C5: 3585 | D5: 3890 | E5: 4907 | F5: 3048 | G5: 3307 | I5: Hijo 0 años | J5: =C5*$J$2 -> 305.1452851 | K5: =D5*$J$2 -> 331.1060416 | L5: =E5*$J$2 -> 417.6702689 | M5: =F5*$J$2 -> 259.4373303 | N5: =G5*$J$2 -> 281.482694 | P5: Hijo 0 años | Q5: =C5*$Q$2 -> 325.6700658 | R5: =D5*$Q$2 -> 353.3770031 | S5: =E5*$Q$2 -> 445.7637415 | T5: =F5*$Q$2 -> 276.8876878 | U5: =G5*$Q$2 -> 300.4158739
B6: Hijo 1 año | C6: 3585 | D6: 3890 | E6: 4907 | F6: 3048 | G6: 3307 | I6: Hijo 1 año | J6: =C6*$J$2 -> 305.1452851 | K6: 331.1060416 | L6: 417.6702689 | M6: 259.4373303 | N6: 281.482694 | P6: Hijo 1 año | Q6: =C6*$Q$2 -> 325.6700658 | R6: 353.3770031 | S6: 445.7637415 | T6: 276.8876878 | U6: 300.4158739
B7: Hijo 2 años | C7: 3585 | D7: 3890 | E7: 4907 | F7: 3048 | G7: 3307 | I7: Hijo 2 años | J7: 305.1452851 | K7: 331.1060416 | L7: 417.6702689 | M7: 259.4373303 | N7: 281.482694 | P7: Hijo 2 años | Q7: 325.6700658 | R7: 353.3770031 | S7: 445.7637415 | T7: 276.8876878 | U7: 300.4158739
B8: Hijo 3 años | C8: 3585 | D8: 3890 | E8: 4907 | F8: 3048 | G8: 3307 | I8: Hijo 3 años | J8: 305.1452851 | K8: 331.1060416 | L8: 417.6702689 | M8: 259.4373303 | N8: 281.482694 | P8: Hijo 3 años | Q8: 325.6700658 | R8: 353.3770031 | S8: 445.7637415 | T8: 276.8876878 | U8: 300.4158739
B9: Hijo 4 años | C9: 3585 | D9: 3890 | E9: 4907 | F9: 3048 | G9: 3307 | I9: Hijo 4 años | J9: 305.1452851 | K9: 331.1060416 | L9: 417.6702689 | M9: 259.4373303 | N9: 281.482694 | P9: Hijo 4 años | Q9: 325.6700658 | R9: 353.3770031 | S9: 445.7637415 | T9: 276.8876878 | U9: 300.4158739
B10: Hijo 5 años | C10: 3585 | D10: 3890 | E10: 4907 | F10: 3048 | G10: 3307 | I10: Hijo 5 años | J10: 305.1452851 | K10: 331.1060416 | L10: 417.6702689 | M10: 259.4373303 | N10: 281.482694 | P10: Hijo 5 años | Q10: 325.6700658 | R10: 353.3770031 | S10: 445.7637415 | T10: 276.8876878 | U10: 300.4158739
B11: Hijo 6 años | C11: 3585 | D11: 3890 | E11: 4907 | F11: 3048 | G11: 3307 | I11: Hijo 6 años | J11: 305.1452851 | K11: 331.1060416 | L11: 417.6702689 | M11: 259.4373303 | N11: 281.482694 | P11: Hijo 6 años | Q11: 325.6700658 | R11: 353.3770031 | S11: 445.7637415 | T11: 276.8876878 | U11: 300.4158739
B12: Hijo 7 años | C12: 3585 | D12: 3890 | E12: 4907 | F12: 3048 | G12: 3307 | I12: Hijo 7 años | J12: 305.1452851 | K12: 331.1060416 | L12: 417.6702689 | M12: 259.4373303 | N12: 281.482694 | P12: Hijo 7 años | Q12: 325.6700658 | R12: 353.3770031 | S12: 445.7637415 | T12: 276.8876878 | U12: 300.4158739
B13: Hijo 8 años | C13: 3585 | D13: 3890 | E13: 4907 | F13: 3048 | G13: 3307 | I13: Hijo 8 años | J13: 305.1452851 | K13: 331.1060416 | L13: 417.6702689 | M13: 259.4373303 | N13: 281.482694 | P13: Hijo 8 años | Q13: 325.6700658 | R13: 353.3770031 | S13: 445.7637415 | T13: 276.8876878 | U13: 300.4158739
B14: Hijo 9 años | C14: 3585 | D14: 3890 | E14: 4907 | F14: 3048 | G14: 3307 | I14: Hijo 9 años | J14: 305.1452851 | K14: 331.1060416 | L14: 417.6702689 | M14: 259.4373303 | N14: 281.482694 | P14: Hijo 9 años | Q14: 325.6700658 | R14: 353.3770031 | S14: 445.7637415 | T14: 276.8876878 | U14: 300.4158739
B15: Hijo 10 años | C15: 3585 | D15: 3890 | E15: 4907 | F15: 3048 | G15: 3307 | I15: Hijo 10 años | J15: 305.1452851 | K15: 331.1060416 | L15: 417.6702689 | M15: 259.4373303 | N15: 281.482694 | P15: Hijo 10 años | Q15: 325.6700658 | R15: 353.3770031 | S15: 445.7637415 | T15: 276.8876878 | U15: 300.4158739
B16: Hijo 11 años | C16: 3585 | D16: 3890 | E16: 4907 | F16: 3048 | G16: 3307 | I16: Hijo 11 años | J16: 305.1452851 | K16: 331.1060416 | L16: 417.6702689 | M16: 259.4373303 | N16: 281.482694 | P16: Hijo 11 años | Q16: 325.6700658 | R16: 353.3770031 | S16: 445.7637415 | T16: 276.8876878 | U16: 300.4158739
B17: Hijo 12 años | C17: 3585 | D17: 3890 | E17: 4907 | F17: 3048 | G17: 3307 | I17: Hijo 12 años | J17: 305.1452851 | K17: 331.1060416 | L17: 417.6702689 | M17: 259.4373303 | N17: 281.482694 | P17: Hijo 12 años | Q17: 325.6700658 | R17: 353.3770031 | S17: 445.7637415 | T17: 276.8876878 | U17: 300.4158739
B18: Hijo 13 años | C18: 3585 | D18: 3890 | E18: 4907 | F18: 3048 | G18: 3307 | I18: Hijo 13 años | J18: 305.1452851 | K18: 331.1060416 | L18: 417.6702689 | M18: 259.4373303 | N18: 281.482694 | P18: Hijo 13 años | Q18: 325.6700658 | R18: 353.3770031 | S18: 445.7637415 | T18: 276.8876878 | U18: 300.4158739
B19: Hijo 14 años | C19: 3585 | D19: 3890 | E19: 4907 | F19: 3048 | G19: 3307 | I19: Hijo 14 años | J19: 305.1452851 | K19: 331.1060416 | L19: 417.6702689 | M19: 259.4373303 | N19: 281.482694 | P19: Hijo 14 años | Q19: 325.6700658 | R19: 353.3770031 | S19: 445.7637415 | T19: 276.8876878 | U19: 300.4158739
B20: Hijo 15 años | C20: 3585 | D20: 3890 | E20: 4907 | F20: 3048 | G20: 3307 | I20: Hijo 15 años | J20: 305.1452851 | K20: 331.1060416 | L20: 417.6702689 | M20: 259.4373303 | N20: 281.482694 | P20: Hijo 15 años | Q20: 325.6700658 | R20: 353.3770031 | S20: 445.7637415 | T20: 276.8876878 | U20: 300.4158739
B21: Hijo 16 años | C21: 3585 | D21: 3890 | E21: 4907 | F21: 3048 | G21: 3307 | I21: Hijo 16 años | J21: 305.1452851 | K21: 331.1060416 | L21: 417.6702689 | M21: 259.4373303 | N21: 281.482694 | P21: Hijo 16 años | Q21: 325.6700658 | R21: 353.3770031 | S21: 445.7637415 | T21: 276.8876878 | U21: 300.4158739
B22: Hijo 17 años | C22: 3585 | D22: 3890 | E22: 4907 | F22: 3048 | G22: 3307 | I22: Hijo 17 años | J22: 305.1452851 | K22: 331.1060416 | L22: 417.6702689 | M22: 259.4373303 | N22: 281.482694 | P22: Hijo 17 años | Q22: 325.6700658 | R22: 353.3770031 | S22: 445.7637415 | T22: 276.8876878 | U22: 300.4158739
B23: Hijo 18 años | C23: 3717 | D23: 4045 | E23: 4926 | F23: 3160 | G23: 3439 | I23: Hijo 18 años | J23: 316.38076 | K23: 344.2992129 | L23: 419.2874963 | M23: 268.9704605 | N23: 292.7181689 | P23: Hijo 18 años | Q23: 337.6612649 | R23: 367.4575778 | S23: 447.4897474 | T23: 287.0620385 | U23: 312.4070729
B24: Hijo 19 años | C24: 3717 | D24: 4045 | E24: 4926 | F24: 3160 | G24: 3439 | I24: Hijo 19 años | J24: 316.38076 | K24: 344.2992129 | L24: 419.2874963 | M24: 268.9704605 | N24: 292.7181689 | P24: Hijo 19 años | Q24: 337.6612649 | R24: 367.4575778 | S24: 447.4897474 | T24: 287.0620385 | U24: 312.4070729
B25: Hijo 20 años | C25: 3717 | D25: 4045 | E25: 4926 | F25: 3160 | G25: 3439 | I25: Hijo 20 años | J25: 316.38076 | K25: 344.2992129 | L25: 419.2874963 | M25: 268.9704605 | N25: 292.7181689 | P25: Hijo 20 años | Q25: 337.6612649 | R25: 367.4575778 | S25: 447.4897474 | T25: 287.0620385 | U25: 312.4070729
B26: Hijo 21 años | C26: 3717 | D26: 4045 | E26: 4926 | F26: 3160 | G26: 3439 | I26: Hijo 21 años | J26: 316.38076 | K26: 344.2992129 | L26: 419.2874963 | M26: 268.9704605 | N26: 292.7181689 | P26: Hijo 21 años | Q26: 337.6612649 | R26: 367.4575778 | S26: 447.4897474 | T26: 287.0620385 | U26: 312.4070729
B27: Hijo 22 años | C27: 3717 | D27: 4045 | E27: 4926 | F27: 3160 | G27: 3439 | I27: Hijo 22 años | J27: 316.38076 | K27: 344.2992129 | L27: 419.2874963 | M27: 268.9704605 | N27: 292.7181689 | P27: Hijo 22 años | Q27: 337.6612649 | R27: 367.4575778 | S27: 447.4897474 | T27: 287.0620385 | U27: 312.4070729
B28: Hijo 23 años | C28: 3717 | D28: 4045 | E28: 4926 | F28: 3160 | G28: 3439 | I28: Hijo 23 años | J28: 316.38076 | K28: 344.2992129 | L28: 419.2874963 | M28: 268.9704605 | N28: 292.7181689 | P28: Hijo 23 años | Q28: 337.6612649 | R28: 367.4575778 | S28: 447.4897474 | T28: 287.0620385 | U28: 312.4070729
B29: Hijo 24 años | C29: 3717 | D29: 4045 | E29: 4926 | F29: 3160 | G29: 3439 | I29: Hijo 24 años | J29: 316.38076 | K29: 344.2992129 | L29: 419.2874963 | M29: 268.9704605 | N29: 292.7181689 | P29: Hijo 24 años | Q29: 337.6612649 | R29: 367.4575778 | S29: 447.4897474 | T29: 287.0620385 | U29: 312.4070729
B30: Hijo 25 años | C30: 3717 | D30: 4045 | E30: 4926 | F30: 3160 | G30: 3439 | I30: Hijo 25 años | J30: 316.38076 | K30: 344.2992129 | L30: 419.2874963 | M30: 268.9704605 | N30: 292.7181689 | P30: Hijo 25 años | Q30: 337.6612649 | R30: 367.4575778 | S30: 447.4897474 | T30: 287.0620385 | U30: 312.4070729
B31: Hijo 26 años | C31: 3864 | D31: 4353 | E31: 5461 | F31: 3285 | G31: 3701 | I31: Hijo 26 años | J31: 328.8929935 | K31: 370.5153211 | L31: 464.8252167 | M31: 279.6101148 | N31: 315.0188843 | P31: Hijo 26 años | Q31: 351.0151003 | R31: 395.4370423 | S31: 496.0904406 | T31: 298.4173407 | U31: 336.2077862
B32: Hijo 27 años | C32: 4282 | D32: 4895 | E32: 5983 | F32: 3640 | G32: 4161 | I32: Hijo 27 años | J32: 364.4719974 | K32: 416.6488621 | L32: 509.256413 | M32: 309.826733 | N32: 354.1728121 | P32: Hijo 27 años | Q32: 388.9872307 | R32: 444.6736324 | S32: 543.5101824 | T32: 330.6663988 | U32: 377.9952982
B33: Hijo 28 años | C33: 4297 | D33: 5018 | E33: 6238 | F33: 3653 | G33: 4266 | I33: Hijo 28 años | J33: 365.7487559 | K33: 427.1182819 | L33: 530.9613078 | M33: 310.933257 | N33: 363.1101217 | P33: Hijo 28 años | Q33: 390.3498669 | R33: 455.8472498 | S33: 566.6749988 | T33: 331.8473502 | U33: 387.533752
B34: Hijo 29 años | C34: 4312 | D34: 5148 | E34: 6605 | F34: 3666 | G34: 4376 | I34: Hijo 29 años | J34: 367.0255145 | K34: 438.1835224 | L34: 562.1993328 | M34: 312.0397811 | N34: 372.4730175 | P34: Hijo 29 años | Q34: 391.7125032 | R34: 467.656764 | S34: 600.0141659 | T34: 333.0283016 | U34: 397.5264179
B35: Hijo 30 años | C35: 4391 | D35: 5192 | E35: 7017 | F35: 3733 | G35: 4414 | I35: Hijo 30 años | J35: 373.749776 | K35: 441.9286807 | L35: 597.2676333 | M35: 317.7426358 | N35: 375.7074724 | P35: Hijo 30 años | Q35: 398.8890542 | R35: 471.6538304 | S35: 637.4412419 | T35: 339.1147436 | U35: 400.9784297
B36: Hijo 31 años | C36: 4391 | D36: 5272 | E36: 7208 | F36: 3733 | G36: 4482 | I36: Hijo 31 años | J36: 373.749776 | K36: 448.7380594 | L36: 613.5250251 | M36: 317.7426358 | N36: 381.4954443 | P36: Hijo 31 años | Q36: 398.8890542 | R36: 478.9212238 | S36: 654.7921435 | T36: 339.1147436 | U36: 407.1557141
B37: Hijo 32 años | C37: 4427 | D37: 5292 | E37: 7534 | F37: 3763 | G37: 4499 | I37: Hijo 32 años | J37: 376.8139964 | K37: 450.4404041 | L37: 641.2732435 | M37: 320.2961528 | N37: 382.9424373 | P37: Hijo 32 años | Q37: 402.1593812 | R37: 480.7380721 | S37: 684.4067716 | T37: 341.8400161 | U37: 408.7000352
B38: Hijo 33 años | C38: 4455 | D38: 5342 | E38: 7755 | F38: 3787 | G38: 4541 | I38: Hijo 33 años | J38: 379.197279 | K38: 454.6962658 | L38: 660.0841523 | M38: 322.3389664 | N38: 386.5173611 | P38: Hijo 33 años | Q38: 404.7029689 | R38: 485.280193 | S38: 704.4829458 | T38: 344.0202341 | U38: 412.5154167
B39: Hijo 34 años | C39: 4477 | D39: 5376 | E39: 7912 | F39: 3806 | G39: 4570 | I39: Hijo 34 años | J39: 381.0698581 | K39: 457.5902518 | L39: 673.4475581 | M39: 323.9561939 | N39: 388.9857609 | P39: Hijo 34 años | Q39: 406.701502 | R39: 488.3688351 | S39: 718.7452053 | T39: 345.7462401 | U39: 415.1498468
B40: Hijo 35 años | C40: 4508 | D40: 5482 | E40: 7955 | F40: 3832 | G40: 4660 | I40: Hijo 35 años | J40: 383.7084924 | K40: 466.6126786 | L40: 677.1075992 | M40: 326.169242 | N40: 396.646312 | P40: Hijo 35 años | Q40: 409.517617 | R40: 497.9981314 | S40: 722.6514292 | T40: 348.1081429 | U40: 423.3256644
B41: Hijo 36 años | C41: 4575 | D41: 5492 | E41: 8117 | F41: 3889 | G41: 4669 | I41: Hijo 36 años | J41: 389.4113471 | K41: 467.463851 | L41: 690.8965911 | M41: 331.0209243 | N41: 397.4123671 | P41: Hijo 36 años | Q41: 415.6040589 | R41: 498.9065555 | S41: 737.3679008 | T41: 353.2861607 | U41: 424.1432461
B42: Hijo 37 años | C42: 4575 | D42: 5497 | E42: 8195 | F42: 3889 | G42: 4673 | I42: Hijo 37 años | J42: 389.4113471 | K42: 467.8894372 | L42: 697.5357354 | M42: 331.0209243 | N42: 397.7528361 | P42: Hijo 37 años | Q42: 415.6040589 | R42: 499.3607676 | S42: 744.4536094 | T42: 353.2861607 | U42: 424.5066158
B43: Hijo 38 años | C43: 4624 | D43: 5517 | E43: 8410 | F43: 3931 | G43: 4690 | I43: Hijo 38 años | J43: 393.5820916 | K43: 469.5917818 | L43: 715.8359408 | M43: 334.5958482 | N43: 399.199829 | P43: Hijo 38 años | Q43: 420.0553374 | R43: 501.177616 | S43: 763.9847291 | T43: 357.1015422 | U43: 426.0509369
B44: Hijo 39 años | C44: 4874 | D44: 5537 | E44: 8517 | F44: 4143 | G44: 4707 | I44: Hijo 39 años | J44: 414.8614002 | K44: 471.2941265 | L44: 724.9434848 | M44: 352.6407019 | N44: 400.646822 | P44: Hijo 39 años | Q44: 442.7659417 | R44: 502.9944643 | S44: 773.7048677 | T44: 376.3601347 | U44: 427.595258
B45: Hijo 40 años | C45: 5214 | D45: 5632 | E45: 8970 | F45: 4432 | G45: 4788 | I45: Hijo 40 años | J45: 443.8012598 | K45: 479.3802638 | L45: 763.501592 | M45: 377.2395826 | N45: 407.541318 | P45: Hijo 40 años | Q45: 473.6523635 | R45: 511.624494 | S45: 814.8564827 | T45: 402.6135933 | U45: 434.9534938
B46: Hijo 41 años | C46: 5366 | D46: 6081 | E46: 9267 | F46: 4562 | G46: 5169 | I46: Hijo 41 años | J46: 456.7390795 | K46: 517.597902 | L46: 788.7814106 | M46: 388.304823 | N46: 439.9709843 | P46: Hijo 41 años | Q46: 487.460411 | R46: 552.4127393 | S46: 841.8366807 | T46: 414.4231075 | U46: 469.5644548
B47: Hijo 42 años | C47: 5519 | D47: 6507 | E47: 9759 | F47: 4692 | G47: 5531 | I47: Hijo 42 años | J47: 469.7620163 | K47: 553.8578438 | L47: 830.6590899 | M47: 399.3700635 | N47: 470.7834231 | P47: Hijo 42 años | Q47: 501.3593008 | R47: 591.1116091 | S47: 886.53115 | T47: 426.2326217 | U47: 502.4494098
B48: Hijo 43 años | C48: 5672 | D48: 7028 | E48: 10066 | F48: 4822 | G48: 5974 | I48: Hijo 43 años | J48: 482.7849532 | K48: 598.2039229 | L48: 856.7900808 | M48: 410.435304 | N48: 508.4903579 | P48: Hijo 43 años | Q48: 515.2581907 | R48: 638.4405084 | S48: 914.4197721 | T48: 438.042136 | U48: 542.6926007
B49: Hijo 44 años | C49: 5849 | D49: 7317 | E49: 10447 | F49: 4972 | G49: 6220 | I49: Hijo 44 años | J49: 497.8507036 | K49: 622.8028036 | L49: 889.2197471 | M49: 423.2028891 | N49: 529.4291976 | P49: Hijo 44 años | Q49: 531.3372985 | R49: 664.693967 | S49: 949.030733 | T49: 451.6684986 | U49: 565.0398353
B50: Hijo 45 años | C50: 6078 | D50: 7605 | E50: 10738 | F50: 5167 | G50: 6465 | I50: Hijo 45 años | J50: 517.3425503 | K50: 647.3165671 | L50: 913.9888623 | M50: 439.8007498 | N50: 550.28292 | P50: Hijo 45 años | Q50: 552.1402121 | R50: 690.8565832 | S50: 975.4658764 | T50: 469.3827699 | U50: 587.2962275
B51: Hijo 46 años | C51: 6333 | D51: 8145 | E51: 11316 | F51: 5384 | G51: 6924 | I51: Hijo 46 años | J51: 539.0474451 | K51: 693.2798737 | L51: 963.1866238 | M51: 458.2711897 | N51: 589.3517306 | P51: Hijo 46 años | Q51: 575.3050285 | R51: 739.9114885 | S51: 1027.972794 | T51: 489.0955745 | U51: 628.992897
B52: Hijo 47 años | C52: 6586 | D52: 8552 | E52: 11726 | F52: 5599 | G52: 7270 | I52: Hijo 47 años | J52: 560.5821053 | K52: 727.9225881 | L52: 998.0846898 | M52: 476.5713951 | N52: 618.8022936 | P52: Hijo 47 años | Q52: 598.28816 | R52: 776.8843523 | S52: 1065.218185 | T52: 508.6266942 | U52: 660.4243734
B53: Hijo 48 años | C53: 6854 | D53: 8837 | E53: 12022 | F53: 5826 | G53: 7512 | I53: Hijo 48 años | J53: 583.3935241 | K53: 752.1809998 | L53: 1023.279391 | M53: 495.8930072 | N53: 639.4006643 | P53: Hijo 48 años | Q53: 622.6339278 | R53: 802.7744413 | S53: 1092.10754 | T53: 529.2479229 | U53: 682.4082384
B54: Hijo 49 años | C54: 7159 | D54: 9128 | E54: 12477 | F54: 6086 | G54: 7759 | I54: Hijo 49 años | J54: 609.3542806 | K54: 776.950115 | L54: 1062.007733 | M54: 518.0234882 | N54: 660.4246212 | P54: Hijo 49 años | Q54: 650.3408651 | R54: 829.2095847 | S54: 1133.44084 | T54: 552.8669514 | U54: 704.8463155
B55: Hijo 50 años | C55: 7502 | D55: 9482 | E55: 13023 | F55: 6377 | G55: 8060 | I55: Hijo 50 años | J55: 638.549492 | K55: 807.081616 | L55: 1108.481743 | M55: 542.7926034 | N55: 686.0449088 | P55: Hijo 50 años | Q55: 681.4998142 | R55: 861.3678004 | S55: 1183.0408 | T55: 579.3020948 | U55: 732.189883
B56: Hijo 51 años | C56: 7858 | D56: 10116 | E56: 13996 | F56: 6680 | G56: 8599 | I56: Hijo 51 años | J56: 668.8512274 | K56: 861.0459426 | L56: 1191.300812 | M56: 568.5831254 | N56: 731.9230981 | P56: Hijo 51 años | Q56: 713.8397148 | R56: 918.9618929 | S56: 1271.430472 | T56: 606.8273472 | U56: 781.1539459
B57: Hijo 52 años | C57: 8265 | D57: 10575 | E57: 15040 | F57: 7026 | G57: 8989 | I57: Hijo 52 años | J57: 703.4939418 | K57: 900.1147531 | L57: 1280.163204 | M57: 598.0336885 | N57: 765.1188195 | P57: Hijo 52 años | Q57: 750.8125786 | R57: 960.6585624 | S57: 1366.269955 | T57: 638.2588236 | U57: 816.5824887
B58: Hijo 53 años | C58: 8711 | D58: 10927 | E58: 15903 | F58: 7405 | G58: 9288 | I58: Hijo 53 años | J58: 741.4562283 | K58: 930.0760196 | L58: 1353.619378 | M58: 630.2931203 | N58: 790.5688725 | P58: Hijo 53 años | Q58: 791.3282967 | R58: 992.6350933 | S58: 1444.666962 | T58: 672.6880997 | U58: 843.7443714
B59: Hijo 54 años | C59: 9181 | D59: 11397 | E59: 16683 | F59: 7804 | G59: 9688 | I59: Hijo 54 años | J59: 781.4613284 | K59: 970.0811197 | L59: 1420.01082 | M59: 664.2548968 | N59: 824.6157663 | P59: Hijo 54 años | Q59: 834.0242328 | R59: 1035.331029 | S59: 1515.524047 | T59: 708.9342242 | U59: 880.0813383
B60: Hijo 55 años | C60: 9715 | D60: 11904 | E60: 17390 | F60: 8258 | G60: 10119 | I60: Hijo 55 años | J60: 826.9139316 | K60: 1013.235558 | L60: 1480.188705 | M60: 702.8981212 | N60: 861.3012943 | P60: Hijo 55 años | Q60: 882.5340836 | R60: 1081.388135 | S60: 1579.749636 | T60: 750.1766817 | U60: 919.2344202
B61: Hijo 56 años | C61: 10300 | D61: 12412 | E61: 17947 | F61: 8755 | G61: 10551 | I61: Hijo 56 años | J61: 876.7075137 | K61: 1056.475113 | L61: 1527.599005 | M61: 745.2013866 | N61: 898.0719395 | P61: Hijo 56 años | Q61: 935.6768977 | R61: 1127.536083 | S61: 1630.348862 | T61: 795.325363 | U61: 958.4783444
B62: Hijo 57 años | C62: 10935 | D62: 12918 | E62: 18994 | F62: 9295 | G62: 10981 | I62: Hijo 57 años | J62: 930.7569575 | K62: 1099.544433 | L62: 1616.716749 | M62: 791.1646932 | N62: 934.6723503 | P62: Hijo 57 años | Q62: 993.3618326 | R62: 1173.502346 | S62: 1725.460873 | T62: 844.3802684 | U62: 997.5405838
B63: Hijo 58 años | C63: 11694 | D63: 13514 | E63: 20054 | F63: 9940 | G63: 11487 | I63: Hijo 58 años | J63: 995.3609383 | K63: 1150.274305 | L63: 1706.941017 | M63: 846.0653093 | N63: 977.7416708 | P63: Hijo 58 años | Q63: 1062.311227 | R63: 1227.644427 | S63: 1821.753836 | T63: 902.9736275 | U63: 1043.506847
B64: Hijo 59 años | C64: 12398 | D64: 14528 | E64: 21166 | F64: 10539 | G64: 12349 | I64: Hijo 59 años | J64: 1055.283471 | K64: 1236.58318 | L64: 1801.591382 | M64: 897.0505327 | N64: 1051.112727 | P64: Hijo 59 años | Q64: 1126.264289 | R64: 1319.758638 | S64: 1922.770604 | T64: 957.3882354 | U64: 1121.813011
B65: Hijo 60 años | C65: 13123 | D65: 15905 | E65: 22494 | F65: 11155 | G65: 13520 | I65: Hijo 60 años | J65: 1116.993466 | K65: 1353.789612 | L65: 1914.627069 | M65: 949.482749 | N65: 1150.785008 | P65: Hijo 60 años | Q65: 1192.125042 | R65: 1444.848646 | S65: 2043.409334 | T65: 1013.347164 | U65: 1228.189481
B66: Hijo 61 años | C66: 14590 | D66: 16848 | E66: 23615 | F66: 12402 | G66: 14321 | I66: Hijo 61 años | J66: 1241.860449 | K66: 1434.055164 | L66: 2010.043489 | M66: 1055.62394 | N66: 1218.963913 | P66: Hijo 61 años | Q66: 1325.390868 | R66: 1530.513046 | S66: 2145.243683 | T66: 1126.627659 | U66: 1300.954257
B67: Hijo 62 años | C67: 15661 | D67: 18547 | E67: 24966 | F67: 13312 | G67: 15765 | I67: Hijo 62 años | J67: 1333.021007 | K67: 1578.669345 | L67: 2125.036872 | M67: 1133.080623 | N67: 1341.873199 | P67: Hijo 62 años | Q67: 1422.683097 | R67: 1684.854313 | S67: 2267.971789 | T67: 1209.294258 | U67: 1432.130708
B68: Hijo 63 años | C68: 16717 | D68: 19953 | E68: 26667 | F68: 14210 | G68: 16961 | I68: Hijo 63 años | J68: 1422.904806 | K68: 1698.344177 | L68: 2269.821288 | M68: 1209.5159 | N68: 1443.673412 | P68: Hijo 63 años | Q68: 1518.612689 | R68: 1812.578751 | S68: 2422.494741 | T68: 1290.870749 | U68: 1540.778239
B69: Hijo 64 años | C69: 18053 | D69: 21354 | E69: 28786 | F69: 15346 | G69: 18151 | I69: Hijo 64 años | J69: 1536.621431 | K69: =D69*$J$2 -> 1817.593422 | L69: =E69*$J$2 -> 2450.184708 | M69: =F69*$J$2 -> 1306.209078 | N69: =G69*$J$2 -> 1544.96292 | P69: Hijo 64 años | Q69: 1639.978159 | R69: =D69*$Q$2 -> 1939.848978 | S69: =E69*$Q$2 -> 2614.989823 | T69: =F69*$Q$2 -> 1394.067735 | U69: =G69*$Q$2 -> 1648.880716
B70: Hijo 65 años | C70: 19659 | D70: 23169 | E70: 30766 | F70: 16711 | G70: 19694 | I70: Hijo 65 años | J70: =C70*$J$2 -> 1673.31971 | K70: 1972.081202 | L70: 2618.716832 | M70: 1422.394103 | N70: 1676.298813 | P70: Hijo 65 años | Q70: =C70*$Q$2 -> 1785.871081 | R70: 2104.727965 | S70: 2794.857809 | T70: 1518.067635 | U70: 1789.050565
B71: Hijo 66 años | C71: 23046 | D71: 25511 | E71: 35966 | F71: 19590 | G71: 21685 | I71: Hijo 66 años | J71: 1961.611783 | K71: 2171.425765 | L71: 3061.32645 | M71: 1667.446621 | N71: 1845.767227 | P71: Hijo 66 años | Q71: 2093.554348 | R71: 2317.480907 | S71: 3267.238379 | T71: 1779.602954 | U71: 1969.917818
B72: Hijo 67 años | C72: 24978 | D72: 28084 | E72: 38137 | F72: 21232 | G72: 23872 | I72: Hijo 67 años | J72: 2126.058279 | K72: 2390.432409 | L72: 3246.115966 | M72: 1807.209119 | N72: 2031.918618 | P72: Hijo 67 años | Q72: 2269.061898 | R72: 2551.218446 | S72: 3464.457267 | T72: 1928.766203 | U72: 2168.590185
B73: Hijo 68 años | C73: 27074 | D73: 30813 | E73: 40590 | F73: 23013 | G73: 26192 | I73: Hijo 68 años | J73: 2304.464002 | K73: 2622.717342 | L73: 3454.908542 | M73: 1958.802914 | N73: 2229.390602 | P73: Hijo 68 años | Q73: 2459.467605 | R73: 2799.127403 | S73: 3687.293716 | T73: 2090.556548 | U73: 2379.344593
B74: Hijo 69 años | C74: 28994 | D74: 33086 | E74: 44348 | F74: 24645 | G74: 28124 | I74: Hijo 69 años | J74: 2467.889092 | K74: 2816.188815 | L74: 3774.779108 | M74: 2097.71424 | N74: 2393.837098 | P74: Hijo 69 años | Q74: 2633.885046 | R74: 3005.612217 | S74: 4028.67952 | T74: 2238.811373 | U74: 2554.852143
B75: Hijo 70 años | C75: 31078 | D75: 35114 | E75: 47666 | F75: 26417 | G75: 29847 | I75: Hijo 70 años | J75: 2645.273409 | K75: 2988.806567 | L75: 4057.198092 | M75: 2248.541979 | N75: 2540.494093 | P75: Hijo 70 años | Q75: 2823.200643 | R75: 3189.840639 | S75: 4330.094661 | T75: 2399.784137 | U75: 2711.373628
B76: Hijo 71 años | C76: 33313 | D76: 39461 | E76: 51716 | F76: 28317 | G76: 33542 | I76: Hijo 71 años | J76: 2835.510427 | K76: 3358.811184 | L76: 4401.922891 | M76: 2410.264725 | N76: 2855.002274 | P76: Hijo 71 años | Q76: 3026.233446 | R76: 3584.732627 | S76: 4698.006451 | T76: 2572.384729 | U76: 3047.036359
B77: Hijo 72 años | C77: 33313 | D77: 39461 | E77: 51716 | F77: 28317 | G77: 33542 | I77: Hijo 72 años | J77: 2835.510427 | K77: 3358.811184 | L77: 4401.922891 | M77: 2410.264725 | N77: 2855.002274 | P77: Hijo 72 años | Q77: 3026.233446 | R77: 3584.732627 | S77: 4698.006451 | T77: 2572.384729 | U77: 3047.036359
B78: Hijo 73 años | C78: 33313 | D78: 39461 | E78: 51716 | F78: 28317 | G78: 33542 | I78: Hijo 73 años | J78: 2835.510427 | K78: 3358.811184 | L78: 4401.922891 | M78: 2410.264725 | N78: 2855.002274 | P78: Hijo 73 años | Q78: 3026.233446 | R78: 3584.732627 | S78: 4698.006451 | T78: 2572.384729 | U78: 3047.036359
B79: Hijo 74 años | C79: 33313 | D79: 39461 | E79: 51716 | F79: 28317 | G79: 33542 | I79: Hijo 74 años | J79: 2835.510427 | K79: 3358.811184 | L79: 4401.922891 | M79: 2410.264725 | N79: 2855.002274 | P79: Hijo 74 años | Q79: 3026.233446 | R79: 3584.732627 | S79: 4698.006451 | T79: 2572.384729 | U79: 3047.036359
B80: Hijo 75 años | C80: 33313 | D80: 39461 | E80: 51716 | F80: 28317 | G80: 33542 | I80: Hijo 75 años | J80: 2835.510427 | K80: 3358.811184 | L80: 4401.922891 | M80: 2410.264725 | N80: 2855.002274 | P80: Hijo 75 años | Q80: 3026.233446 | R80: 3584.732627 | S80: 4698.006451 | T80: 2572.384729 | U80: 3047.036359
B81: Hijo 76 años | C81: 35245 | D81: 42054 | E81: 58939 | F81: 29959 | G81: 35746 | I81: Hijo 76 años | J81: 2999.956924 | K81: 3579.520173 | L81: 5016.724675 | M81: 2550.027224 | N81: 3042.600659 | P81: Hijo 76 años | Q81: 3201.740996 | R81: 3820.287015 | S81: 5354.16123 | T81: 2721.547978 | U81: 3247.253047
B82: Hijo 77 años | C82: 35245 | D82: 42054 | E82: 58939 | F82: 29959 | G82: 35746 | I82: Hijo 77 años | J82: 2999.956924 | K82: 3579.520173 | L82: 5016.724675 | M82: 2550.027224 | N82: 3042.600659 | P82: Hijo 77 años | Q82: 3201.740996 | R82: 3820.287015 | S82: 5354.16123 | T82: 2721.547978 | U82: 3247.253047
B83: Hijo 78 años | C83: 35245 | D83: 42054 | E83: 58939 | F83: 29959 | G83: 35746 | I83: Hijo 78 años | J83: 2999.956924 | K83: 3579.520173 | L83: 5016.724675 | M83: 2550.027224 | N83: 3042.600659 | P83: Hijo 78 años | Q83: 3201.740996 | R83: 3820.287015 | S83: 5354.16123 | T83: 2721.547978 | U83: 3247.253047
B84: Hijo 79 años | C84: 35245 | D84: 42054 | E84: 58939 | F84: 29959 | G84: 35746 | I84: Hijo 79 años | J84: 2999.956924 | K84: 3579.520173 | L84: 5016.724675 | M84: 2550.027224 | N84: 3042.600659 | P84: Hijo 79 años | Q84: 3201.740996 | R84: 3820.287015 | S84: 5354.16123 | T84: 2721.547978 | U84: 3247.253047
B85: Hijo 80 años | C85: 35245 | D85: 42054 | E85: 58939 | F85: 29959 | G85: 35746 | I85: Hijo 80 años | J85: 2999.956924 | K85: 3579.520173 | L85: 5016.724675 | M85: 2550.027224 | N85: 3042.600659 | P85: Hijo 80 años | Q85: 3201.740996 | R85: 3820.287015 | S85: 5354.16123 | T85: 2721.547978 | U85: 3247.253047
B86: Hijo 81 años | C86: 37317 | D86: 46576 | E86: 65002 | F86: 31720 | G86: 39590 | I86: Hijo 81 años | J86: 3176.319834 | K86: 3964.420306 | L86: 5532.790466 | M86: 2699.918673 | N86: 3369.791307 | P86: Hijo 81 años | Q86: 3389.966485 | R86: 4231.076426 | S86: 5904.938806 | T86: 2881.521475 | U86: 3596.451299
B87: Hijo 82 años | C87: 37317 | D87: 46576 | E87: 65002 | F87: 31720 | G87: 39590 | I87: Hijo 82 años | J87: =C87*$J$2 -> 3176.319834 | K87: =D87*$J$2 -> 3964.420306 | L87: =E87*$J$2 -> 5532.790466 | M87: =F87*$J$2 -> 2699.918673 | N87: =G87*$J$2 -> 3369.791307 | P87: Hijo 82 años | Q87: =C87*$Q$2 -> 3389.966485 | R87: =D87*$Q$2 -> 4231.076426 | S87: =E87*$Q$2 -> 5904.938806 | T87: =F87*$Q$2 -> 2881.521475 | U87: =G87*$Q$2 -> 3596.451299
B88: Hijo 83 años | C88: 37317 | D88: 46576 | E88: 65002 | F88: 31720 | G88: 39590 | I88: Hijo 83 años | J88: 3176.319834 | K88: 3964.420306 | L88: 5532.790466 | M88: 2699.918673 | N88: 3369.791307 | P88: Hijo 83 años | Q88: 3389.966485 | R88: 4231.076426 | S88: 5904.938806 | T88: 2881.521475 | U88: 3596.451299
B89: Hijo 84 años | C89: 37317 | D89: 46576 | E89: 65002 | F89: 31720 | G89: 39590 | I89: Hijo 84 años | J89: 3176.319834 | K89: 3964.420306 | L89: 5532.790466 | M89: 2699.918673 | N89: 3369.791307 | P89: Hijo 84 años | Q89: 3389.966485 | R89: 4231.076426 | S89: 5904.938806 | T89: 2881.521475 | U89: 3596.451299
B90: Hijo 85 años | C90: 37317 | D90: 46576 | E90: 65002 | F90: 31720 | G90: 39590 | I90: Hijo 85 años | J90: 3176.319834 | K90: 3964.420306 | L90: 5532.790466 | M90: 2699.918673 | N90: 3369.791307 | P90: Hijo 85 años | Q90: 3389.966485 | R90: 4231.076426 | S90: 5904.938806 | T90: 2881.521475 | U90: 3596.451299
B91: Hijo 86 años | C91: 37317 | D91: 46576 | E91: 65002 | F91: 31720 | G91: 39590 | I91: Hijo 86 años | J91: 3176.319834 | K91: 3964.420306 | L91: 5532.790466 | M91: 2699.918673 | N91: 3369.791307 | P91: Hijo 86 años | Q91: 3389.966485 | R91: 4231.076426 | S91: 5904.938806 | T91: 2881.521475 | U91: 3596.451299
B92: Hijo 87 años | C92: 37317 | D92: 46576 | E92: 65002 | F92: 31720 | G92: 39590 | I92: Hijo 87 años | J92: 3176.319834 | K92: 3964.420306 | L92: 5532.790466 | M92: 2699.918673 | N92: 3369.791307 | P92: Hijo 87 años | Q92: 3389.966485 | R92: 4231.076426 | S92: 5904.938806 | T92: 2881.521475 | U92: 3596.451299
B93: Hijo 88 años | C93: 37317 | D93: 46576 | E93: 65002 | F93: 31720 | G93: 39590 | I93: Hijo 88 años | J93: 3176.319834 | K93: 3964.420306 | L93: 5532.790466 | M93: 2699.918673 | N93: 3369.791307 | P93: Hijo 88 años | Q93: 3389.966485 | R93: 4231.076426 | S93: 5904.938806 | T93: 2881.521475 | U93: 3596.451299
B94: Hijo 89 años | C94: 37317 | D94: 46576 | E94: 65002 | F94: 31720 | G94: 39590 | I94: Hijo 89 años | J94: 3176.319834 | K94: 3964.420306 | L94: 5532.790466 | M94: 2699.918673 | N94: 3369.791307 | P94: Hijo 89 años | Q94: 3389.966485 | R94: 4231.076426 | S94: 5904.938806 | T94: 2881.521475 | U94: 3596.451299
B95: Hijo 90 años | C95: 37317 | D95: 46576 | E95: 65002 | F95: 31720 | G95: 39590 | I95: Hijo 90 años | J95: 3176.319834 | K95: 3964.420306 | L95: 5532.790466 | M95: 2699.918673 | N95: 3369.791307 | P95: Hijo 90 años | Q95: 3389.966485 | R95: 4231.076426 | S95: 5904.938806 | T95: 2881.521475 | U95: 3596.451299
B96: Hijo 91 años | C96: 37317 | D96: 46576 | E96: 65002 | F96: 31720 | G96: 39590 | I96: Hijo 91 años | J96: 3176.319834 | K96: 3964.420306 | L96: 5532.790466 | M96: 2699.918673 | N96: 3369.791307 | P96: Hijo 91 años | Q96: 3389.966485 | R96: 4231.076426 | S96: 5904.938806 | T96: 2881.521475 | U96: 3596.451299
B97: Hijo 92 años | C97: 37317 | D97: 46576 | E97: 65002 | F97: 31720 | G97: 39590 | I97: Hijo 92 años | J97: 3176.319834 | K97: 3964.420306 | L97: 5532.790466 | M97: 2699.918673 | N97: 3369.791307 | P97: Hijo 92 años | Q97: 3389.966485 | R97: 4231.076426 | S97: 5904.938806 | T97: 2881.521475 | U97: 3596.451299
B98: Hijo 93 años | C98: 37317 | D98: 46576 | E98: 65002 | F98: 31720 | G98: 39590 | I98: Hijo 93 años | J98: 3176.319834 | K98: 3964.420306 | L98: 5532.790466 | M98: 2699.918673 | N98: 3369.791307 | P98: Hijo 93 años | Q98: 3389.966485 | R98: 4231.076426 | S98: 5904.938806 | T98: 2881.521475 | U98: 3596.451299
B99: Hijo 94 años | C99: 37317 | D99: 46576 | E99: 65002 | F99: 31720 | G99: 39590 | I99: Hijo 94 años | J99: 3176.319834 | K99: 3964.420306 | L99: 5532.790466 | M99: 2699.918673 | N99: 3369.791307 | P99: Hijo 94 años | Q99: 3389.966485 | R99: 4231.076426 | S99: 5904.938806 | T99: 2881.521475 | U99: 3596.451299
B100: Hijo 95 años | C100: 37317 | D100: 46576 | E100: 65002 | F100: 31720 | G100: 39590 | I100: Hijo 95 años | J100: 3176.319834 | K100: 3964.420306 | L100: 5532.790466 | M100: 2699.918673 | N100: 3369.791307 | P100: Hijo 95 años | Q100: 3389.966485 | R100: 4231.076426 | S100: 5904.938806 | T100: 2881.521475 | U100: 3596.451299
B101: Hijo 96 años | C101: 37317 | D101: 46576 | E101: 65002 | F101: 31720 | G101: 39590 | I101: Hijo 96 años | J101: 3176.319834 | K101: 3964.420306 | L101: 5532.790466 | M101: 2699.918673 | N101: 3369.791307 | P101: Hijo 96 años | Q101: 3389.966485 | R101: 4231.076426 | S101: 5904.938806 | T101: 2881.521475 | U101: 3596.451299
B102: Hijo 97 años | C102: 37317 | D102: 46576 | E102: 65002 | F102: 31720 | G102: 39590 | I102: Hijo 97 años | J102: 3176.319834 | K102: 3964.420306 | L102: 5532.790466 | M102: 2699.918673 | N102: 3369.791307 | P102: Hijo 97 años | Q102: 3389.966485 | R102: 4231.076426 | S102: 5904.938806 | T102: 2881.521475 | U102: 3596.451299
B103: Hijo 98 años | C103: 37317 | D103: 46576 | E103: 65002 | F103: 31720 | G103: 39590 | I103: Hijo 98 años | J103: 3176.319834 | K103: 3964.420306 | L103: 5532.790466 | M103: 2699.918673 | N103: 3369.791307 | P103: Hijo 98 años | Q103: 3389.966485 | R103: 4231.076426 | S103: 5904.938806 | T103: 2881.521475 | U103: 3596.451299
B104: Hijo 99 años | C104: 37317 | D104: 46576 | E104: 65002 | F104: 31720 | G104: 39590 | I104: Hijo 99 años | J104: 3176.319834 | K104: 3964.420306 | L104: 5532.790466 | M104: 2699.918673 | N104: 3369.791307 | P104: Hijo 99 años | Q104: 3389.966485 | R104: 4231.076426 | S104: 5904.938806 | T104: 2881.521475 | U104: 3596.451299
B105: Hijo 100 años | C105: 37317 | D105: 46576 | E105: 65002 | F105: 31720 | G105: 39590 | I105: Hijo 100 años | J105: 3176.319834 | K105: 3964.420306 | L105: 5532.790466 | M105: 2699.918673 | N105: 3369.791307 | P105: Hijo 100 años | Q105: 3389.966485 | R105: 4231.076426 | S105: 5904.938806 | T105: 2881.521475 | U105: 3596.451299
B106: Hija 0 años | C106: =C5 -> 3585 | D106: =D5 -> 3890 | E106: 4907 | F106: 3048 | G106: =G5 -> 3307 | I106: Hija 0 años | J106: 305.1452851 | K106: 331.1060416 | L106: 417.6702689 | M106: 259.4373303 | N106: 281.482694 | P106: Hija 0 años | Q106: 325.6700658 | R106: 353.3770031 | S106: 445.7637415 | T106: 276.8876878 | U106: 300.4158739
B107: Hija 1 año | C107: =C6 -> 3585 | D107: 3890 | E107: 4907 | F107: 3048 | G107: 3307 | I107: Hija 1 año | J107: 305.1452851 | K107: 331.1060416 | L107: 417.6702689 | M107: 259.4373303 | N107: 281.482694 | P107: Hija 1 año | Q107: 325.6700658 | R107: 353.3770031 | S107: 445.7637415 | T107: 276.8876878 | U107: 300.4158739
B108: Hija 2 años | C108: =C7 -> 3585 | D108: 3890 | E108: 4907 | F108: 3048 | G108: 3307 | I108: Hija 2 años | J108: 305.1452851 | K108: 331.1060416 | L108: 417.6702689 | M108: 259.4373303 | N108: 281.482694 | P108: Hija 2 años | Q108: 325.6700658 | R108: 353.3770031 | S108: 445.7637415 | T108: 276.8876878 | U108: 300.4158739
B109: Hija 3 años | C109: =C8 -> 3585 | D109: 3890 | E109: 4907 | F109: 3048 | G109: 3307 | I109: Hija 3 años | J109: 305.1452851 | K109: 331.1060416 | L109: 417.6702689 | M109: 259.4373303 | N109: 281.482694 | P109: Hija 3 años | Q109: 325.6700658 | R109: 353.3770031 | S109: 445.7637415 | T109: 276.8876878 | U109: 300.4158739
B110: Hija 4 años | C110: =C9 -> 3585 | D110: 3890 | E110: 4907 | F110: 3048 | G110: 3307 | I110: Hija 4 años | J110: 305.1452851 | K110: 331.1060416 | L110: 417.6702689 | M110: 259.4373303 | N110: 281.482694 | P110: Hija 4 años | Q110: 325.6700658 | R110: 353.3770031 | S110: 445.7637415 | T110: 276.8876878 | U110: 300.4158739
B111: Hija 5 años | C111: =C10 -> 3585 | D111: 3890 | E111: 4907 | F111: 3048 | G111: 3307 | I111: Hija 5 años | J111: 305.1452851 | K111: 331.1060416 | L111: 417.6702689 | M111: 259.4373303 | N111: 281.482694 | P111: Hija 5 años | Q111: 325.6700658 | R111: 353.3770031 | S111: 445.7637415 | T111: 276.8876878 | U111: 300.4158739
B112: Hija 6 años | C112: =C11 -> 3585 | D112: 3890 | E112: 4907 | F112: 3048 | G112: 3307 | I112: Hija 6 años | J112: 305.1452851 | K112: 331.1060416 | L112: 417.6702689 | M112: 259.4373303 | N112: 281.482694 | P112: Hija 6 años | Q112: 325.6700658 | R112: 353.3770031 | S112: 445.7637415 | T112: 276.8876878 | U112: 300.4158739
B113: Hija 7 años | C113: =C12 -> 3585 | D113: 3890 | E113: 4907 | F113: 3048 | G113: 3307 | I113: Hija 7 años | J113: 305.1452851 | K113: 331.1060416 | L113: 417.6702689 | M113: 259.4373303 | N113: 281.482694 | P113: Hija 7 años | Q113: 325.6700658 | R113: 353.3770031 | S113: 445.7637415 | T113: 276.8876878 | U113: 300.4158739
B114: Hija 8 años | C114: =C13 -> 3585 | D114: 3890 | E114: 4907 | F114: 3048 | G114: 3307 | I114: Hija 8 años | J114: 305.1452851 | K114: 331.1060416 | L114: 417.6702689 | M114: 259.4373303 | N114: 281.482694 | P114: Hija 8 años | Q114: 325.6700658 | R114: 353.3770031 | S114: 445.7637415 | T114: 276.8876878 | U114: 300.4158739
B115: Hija 9 años | C115: =C14 -> 3585 | D115: 3890 | E115: 4907 | F115: 3048 | G115: 3307 | I115: Hija 9 años | J115: 305.1452851 | K115: 331.1060416 | L115: 417.6702689 | M115: 259.4373303 | N115: 281.482694 | P115: Hija 9 años | Q115: 325.6700658 | R115: 353.3770031 | S115: 445.7637415 | T115: 276.8876878 | U115: 300.4158739
B116: Hija 10 años | C116: =C15 -> 3585 | D116: 3890 | E116: 4907 | F116: 3048 | G116: 3307 | I116: Hija 10 años | J116: 305.1452851 | K116: 331.1060416 | L116: 417.6702689 | M116: 259.4373303 | N116: 281.482694 | P116: Hija 10 años | Q116: 325.6700658 | R116: 353.3770031 | S116: 445.7637415 | T116: 276.8876878 | U116: 300.4158739
B117: Hija 11 años | C117: =C16 -> 3585 | D117: 3890 | E117: 4907 | F117: 3048 | G117: 3307 | I117: Hija 11 años | J117: 305.1452851 | K117: 331.1060416 | L117: 417.6702689 | M117: 259.4373303 | N117: 281.482694 | P117: Hija 11 años | Q117: 325.6700658 | R117: 353.3770031 | S117: 445.7637415 | T117: 276.8876878 | U117: 300.4158739
B118: Hija 12 años | C118: =C17 -> 3585 | D118: 3890 | E118: 4907 | F118: 3048 | G118: 3307 | I118: Hija 12 años | J118: 305.1452851 | K118: 331.1060416 | L118: 417.6702689 | M118: 259.4373303 | N118: 281.482694 | P118: Hija 12 años | Q118: 325.6700658 | R118: 353.3770031 | S118: 445.7637415 | T118: 276.8876878 | U118: 300.4158739
B119: Hija 13 años | C119: =C18 -> 3585 | D119: 3890 | E119: 4907 | F119: 3048 | G119: 3307 | I119: Hija 13 años | J119: 305.1452851 | K119: 331.1060416 | L119: 417.6702689 | M119: 259.4373303 | N119: 281.482694 | P119: Hija 13 años | Q119: 325.6700658 | R119: 353.3770031 | S119: 445.7637415 | T119: 276.8876878 | U119: 300.4158739
B120: Hija 14 años | C120: =C19 -> 3585 | D120: 3890 | E120: 4907 | F120: 3048 | G120: 3307 | I120: Hija 14 años | J120: 305.1452851 | K120: 331.1060416 | L120: 417.6702689 | M120: 259.4373303 | N120: 281.482694 | P120: Hija 14 años | Q120: 325.6700658 | R120: 353.3770031 | S120: 445.7637415 | T120: 276.8876878 | U120: 300.4158739
B121: Hija 15 años | C121: =C20 -> 3585 | D121: 3890 | E121: 4907 | F121: 3048 | G121: 3307 | I121: Hija 15 años | J121: 305.1452851 | K121: 331.1060416 | L121: 417.6702689 | M121: 259.4373303 | N121: 281.482694 | P121: Hija 15 años | Q121: 325.6700658 | R121: 353.3770031 | S121: 445.7637415 | T121: 276.8876878 | U121: 300.4158739
B122: Hija 16 años | C122: =C21 -> 3585 | D122: 3890 | E122: 4907 | F122: 3048 | G122: 3307 | I122: Hija 16 años | J122: 305.1452851 | K122: 331.1060416 | L122: 417.6702689 | M122: 259.4373303 | N122: 281.482694 | P122: Hija 16 años | Q122: 325.6700658 | R122: 353.3770031 | S122: 445.7637415 | T122: 276.8876878 | U122: 300.4158739
B123: Hija 17 años | C123: =C22 -> 3585 | D123: 3890 | E123: 4907 | F123: 3048 | G123: 3307 | I123: Hija 17 años | J123: 305.1452851 | K123: 331.1060416 | L123: 417.6702689 | M123: 259.4373303 | N123: 281.482694 | P123: Hija 17 años | Q123: 325.6700658 | R123: 353.3770031 | S123: 445.7637415 | T123: 276.8876878 | U123: 300.4158739
B124: Hija 18 años | C124: =C23 -> 3717 | D124: 4045 | E124: 4926 | F124: 3160 | G124: 3439 | I124: Hija 18 años | J124: 316.38076 | K124: 344.2992129 | L124: 419.2874963 | M124: 268.9704605 | N124: 292.7181689 | P124: Hija 18 años | Q124: 337.6612649 | R124: 367.4575778 | S124: 447.4897474 | T124: 287.0620385 | U124: 312.4070729
B125: Hija 19 años | C125: =C24 -> 3717 | D125: 4045 | E125: 4926 | F125: 3160 | G125: 3439 | I125: Hija 19 años | J125: 316.38076 | K125: 344.2992129 | L125: 419.2874963 | M125: 268.9704605 | N125: 292.7181689 | P125: Hija 19 años | Q125: 337.6612649 | R125: 367.4575778 | S125: 447.4897474 | T125: 287.0620385 | U125: 312.4070729
B126: Hija 20 años | C126: =C25 -> 3717 | D126: 4045 | E126: 4926 | F126: 3160 | G126: 3439 | I126: Hija 20 años | J126: 316.38076 | K126: 344.2992129 | L126: 419.2874963 | M126: 268.9704605 | N126: 292.7181689 | P126: Hija 20 años | Q126: 337.6612649 | R126: 367.4575778 | S126: 447.4897474 | T126: 287.0620385 | U126: 312.4070729
B127: Hija 21 años | C127: =C26 -> 3717 | D127: 4045 | E127: 4926 | F127: 3160 | G127: 3439 | I127: Hija 21 años | J127: 316.38076 | K127: 344.2992129 | L127: 419.2874963 | M127: 268.9704605 | N127: 292.7181689 | P127: Hija 21 años | Q127: 337.6612649 | R127: 367.4575778 | S127: 447.4897474 | T127: 287.0620385 | U127: 312.4070729
B128: Hija 22 años | C128: =C27 -> 3717 | D128: 4045 | E128: 4926 | F128: 3160 | G128: 3439 | I128: Hija 22 años | J128: 316.38076 | K128: 344.2992129 | L128: 419.2874963 | M128: 268.9704605 | N128: 292.7181689 | P128: Hija 22 años | Q128: 337.6612649 | R128: 367.4575778 | S128: 447.4897474 | T128: 287.0620385 | U128: 312.4070729
B129: Hija 23 años | C129: =C28 -> 3717 | D129: 4045 | E129: 4926 | F129: 3160 | G129: 3439 | I129: Hija 23 años | J129: 316.38076 | K129: 344.2992129 | L129: 419.2874963 | M129: 268.9704605 | N129: 292.7181689 | P129: Hija 23 años | Q129: 337.6612649 | R129: 367.4575778 | S129: 447.4897474 | T129: 287.0620385 | U129: 312.4070729
B130: Hija 24 años | C130: =C29 -> 3717 | D130: 4045 | E130: 4926 | F130: 3160 | G130: 3439 | I130: Hija 24 años | J130: 316.38076 | K130: 344.2992129 | L130: 419.2874963 | M130: 268.9704605 | N130: 292.7181689 | P130: Hija 24 años | Q130: 337.6612649 | R130: 367.4575778 | S130: 447.4897474 | T130: 287.0620385 | U130: 312.4070729
B131: Hija 25 años | C131: =C30 -> 3717 | D131: 4045 | E131: 4926 | F131: 3160 | G131: 3439 | I131: Hija 25 años | J131: 316.38076 | K131: 344.2992129 | L131: 419.2874963 | M131: 268.9704605 | N131: 292.7181689 | P131: Hija 25 años | Q131: 337.6612649 | R131: 367.4575778 | S131: 447.4897474 | T131: 287.0620385 | U131: 312.4070729
B132: Hija 26 años | C132: =C31 -> 3864 | D132: 4353 | E132: 5461 | F132: 3285 | G132: 3701 | I132: Hija 26 años | J132: 328.8929935 | K132: 370.5153211 | L132: 464.8252167 | M132: 279.6101148 | N132: 315.0188843 | P132: Hija 26 años | Q132: 351.0151003 | R132: 395.4370423 | S132: 496.0904406 | T132: 298.4173407 | U132: 336.2077862
B133: Hija 27 años | C133: =C32 -> 4282 | D133: 4895 | E133: 5983 | F133: 3640 | G133: 4161 | I133: Hija 27 años | J133: 364.4719974 | K133: 416.6488621 | L133: 509.256413 | M133: 309.826733 | N133: 354.1728121 | P133: Hija 27 años | Q133: 388.9872307 | R133: 444.6736324 | S133: 543.5101824 | T133: 330.6663988 | U133: 377.9952982
B134: Hija 28 años | C134: =C33 -> 4297 | D134: 5018 | E134: 6238 | F134: 3653 | G134: 4266 | I134: Hija 28 años | J134: 365.7487559 | K134: 427.1182819 | L134: 530.9613078 | M134: 310.933257 | N134: 363.1101217 | P134: Hija 28 años | Q134: 390.3498669 | R134: 455.8472498 | S134: 566.6749988 | T134: 331.8473502 | U134: 387.533752
B135: Hija 29 años | C135: =C34 -> 4312 | D135: 5148 | E135: 6605 | F135: 3666 | G135: 4376 | I135: Hija 29 años | J135: 367.0255145 | K135: 438.1835224 | L135: 562.1993328 | M135: 312.0397811 | N135: 372.4730175 | P135: Hija 29 años | Q135: 391.7125032 | R135: 467.656764 | S135: 600.0141659 | T135: 333.0283016 | U135: 397.5264179
B136: Hija 30 años | C136: =C35 -> 4391 | D136: 5192 | E136: 7017 | F136: 3733 | G136: 4414 | I136: Hija 30 años | J136: 373.749776 | K136: 441.9286807 | L136: 597.2676333 | M136: 317.7426358 | N136: 375.7074724 | P136: Hija 30 años | Q136: 398.8890542 | R136: 471.6538304 | S136: 637.4412419 | T136: 339.1147436 | U136: 400.9784297
B137: Hija 31 años | C137: =C36 -> 4391 | D137: 5272 | E137: 7208 | F137: 3733 | G137: 4482 | I137: Hija 31 años | J137: 373.749776 | K137: 448.7380594 | L137: 613.5250251 | M137: 317.7426358 | N137: 381.4954443 | P137: Hija 31 años | Q137: 398.8890542 | R137: 478.9212238 | S137: 654.7921435 | T137: 339.1147436 | U137: 407.1557141
B138: Hija 32 años | C138: =C37 -> 4427 | D138: 5292 | E138: 7534 | F138: 3763 | G138: 4499 | I138: Hija 32 años | J138: 376.8139964 | K138: 450.4404041 | L138: 641.2732435 | M138: 320.2961528 | N138: 382.9424373 | P138: Hija 32 años | Q138: 402.1593812 | R138: 480.7380721 | S138: 684.4067716 | T138: 341.8400161 | U138: 408.7000352
B139: Hija 33 años | C139: =C38 -> 4455 | D139: 5342 | E139: 7755 | F139: 3787 | G139: 4541 | I139: Hija 33 años | J139: 379.197279 | K139: 454.6962658 | L139: 660.0841523 | M139: 322.3389664 | N139: 386.5173611 | P139: Hija 33 años | Q139: 404.7029689 | R139: 485.280193 | S139: 704.4829458 | T139: 344.0202341 | U139: 412.5154167
B140: Hija 34 años | C140: =C39 -> 4477 | D140: 5376 | E140: 7912 | F140: 3806 | G140: 4570 | I140: Hija 34 años | J140: 381.0698581 | K140: 457.5902518 | L140: 673.4475581 | M140: 323.9561939 | N140: 388.9857609 | P140: Hija 34 años | Q140: 406.701502 | R140: 488.3688351 | S140: 718.7452053 | T140: 345.7462401 | U140: 415.1498468
B141: Hija 35 años | C141: =C40 -> 4508 | D141: 5482 | E141: 7955 | F141: 3832 | G141: 4660 | I141: Hija 35 años | J141: 383.7084924 | K141: 466.6126786 | L141: 677.1075992 | M141: 326.169242 | N141: 396.646312 | P141: Hija 35 años | Q141: 409.517617 | R141: 497.9981314 | S141: 722.6514292 | T141: 348.1081429 | U141: 423.3256644
B142: Hija 36 años | C142: =C41 -> 4575 | D142: 5492 | E142: 8117 | F142: 3889 | G142: 4669 | I142: Hija 36 años | J142: 389.4113471 | K142: 467.463851 | L142: 690.8965911 | M142: 331.0209243 | N142: 397.4123671 | P142: Hija 36 años | Q142: 415.6040589 | R142: 498.9065555 | S142: 737.3679008 | T142: 353.2861607 | U142: 424.1432461
B143: Hija 37 años | C143: =C42 -> 4575 | D143: 5497 | E143: 8195 | F143: 3889 | G143: 4673 | I143: Hija 37 años | J143: 389.4113471 | K143: 467.8894372 | L143: 697.5357354 | M143: 331.0209243 | N143: 397.7528361 | P143: Hija 37 años | Q143: 415.6040589 | R143: 499.3607676 | S143: 744.4536094 | T143: 353.2861607 | U143: 424.5066158
B144: Hija 38 años | C144: =C43 -> 4624 | D144: 5517 | E144: 8410 | F144: 3931 | G144: 4690 | I144: Hija 38 años | J144: 393.5820916 | K144: 469.5917818 | L144: 715.8359408 | M144: 334.5958482 | N144: 399.199829 | P144: Hija 38 años | Q144: 420.0553374 | R144: 501.177616 | S144: 763.9847291 | T144: 357.1015422 | U144: 426.0509369
B145: Hija 39 años | C145: =C44 -> 4874 | D145: 5537 | E145: 8517 | F145: 4143 | G145: 4707 | I145: Hija 39 años | J145: 414.8614002 | K145: 471.2941265 | L145: 724.9434848 | M145: 352.6407019 | N145: 400.646822 | P145: Hija 39 años | Q145: 442.7659417 | R145: 502.9944643 | S145: 773.7048677 | T145: 376.3601347 | U145: 427.595258
B146: Hija 40 años | C146: =C45 -> 5214 | D146: 5632 | E146: 8970 | F146: 4432 | G146: 4788 | I146: Hija 40 años | J146: 443.8012598 | K146: 479.3802638 | L146: 763.501592 | M146: 377.2395826 | N146: 407.541318 | P146: Hija 40 años | Q146: 473.6523635 | R146: 511.624494 | S146: 814.8564827 | T146: 402.6135933 | U146: 434.9534938
B147: Hija 41 años | C147: =C46 -> 5366 | D147: 6081 | E147: 9267 | F147: 4562 | G147: 5169 | I147: Hija 41 años | J147: 456.7390795 | K147: 517.597902 | L147: 788.7814106 | M147: 388.304823 | N147: 439.9709843 | P147: Hija 41 años | Q147: 487.460411 | R147: 552.4127393 | S147: 841.8366807 | T147: 414.4231075 | U147: 469.5644548
B148: Hija 42 años | C148: =C47 -> 5519 | D148: 6507 | E148: 9759 | F148: 4692 | G148: 5531 | I148: Hija 42 años | J148: 469.7620163 | K148: 553.8578438 | L148: 830.6590899 | M148: 399.3700635 | N148: 470.7834231 | P148: Hija 42 años | Q148: 501.3593008 | R148: 591.1116091 | S148: 886.53115 | T148: 426.2326217 | U148: 502.4494098
B149: Hija 43 años | C149: =C48 -> 5672 | D149: 7028 | E149: 10066 | F149: 4822 | G149: 5974 | I149: Hija 43 años | J149: 482.7849532 | K149: 598.2039229 | L149: 856.7900808 | M149: 410.435304 | N149: 508.4903579 | P149: Hija 43 años | Q149: 515.2581907 | R149: 638.4405084 | S149: 914.4197721 | T149: 438.042136 | U149: 542.6926007
B150: Hija 44 años | C150: =C49 -> 5849 | D150: 7317 | E150: 10447 | F150: 4972 | G150: 6220 | I150: Hija 44 años | J150: 497.8507036 | K150: 622.8028036 | L150: 889.2197471 | M150: 423.2028891 | N150: 529.4291976 | P150: Hija 44 años | Q150: 531.3372985 | R150: 664.693967 | S150: 949.030733 | T150: 451.6684986 | U150: 565.0398353
B151: Hija 45 años | C151: =C50 -> 6078 | D151: 7605 | E151: 10738 | F151: 5167 | G151: 6465 | I151: Hija 45 años | J151: 517.3425503 | K151: 647.3165671 | L151: 913.9888623 | M151: 439.8007498 | N151: 550.28292 | P151: Hija 45 años | Q151: 552.1402121 | R151: 690.8565832 | S151: 975.4658764 | T151: 469.3827699 | U151: 587.2962275
B152: Hija 46 años | C152: =C51 -> 6333 | D152: 8145 | E152: 11316 | F152: 5384 | G152: 6924 | I152: Hija 46 años | J152: 539.0474451 | K152: =D152*$J$2 -> 693.2798737 | L152: =E152*$J$2 -> 963.1866238 | M152: =F152*$J$2 -> 458.2711897 | N152: =G152*$J$2 -> 589.3517306 | P152: Hija 46 años | Q152: 575.3050285 | R152: =D152*$Q$2 -> 739.9114885 | S152: =E152*$Q$2 -> 1027.972794 | T152: =F152*$Q$2 -> 489.0955745 | U152: =G152*$Q$2 -> 628.992897
B153: Hija 47 años | C153: =C52 -> 6586 | D153: 8552 | E153: 11726 | F153: 5599 | G153: 7270 | I153: Hija 47 años | J153: =C153*$J$2 -> 560.5821053 | K153: 727.9225881 | L153: 998.0846898 | M153: 476.5713951 | N153: 618.8022936 | P153: Hija 47 años | Q153: =C153*$Q$2 -> 598.28816 | R153: 776.8843523 | S153: 1065.218185 | T153: 508.6266942 | U153: 660.4243734
B154: Hija 48 años | C154: =C53 -> 6854 | D154: 8837 | E154: 12022 | F154: 5826 | G154: 7512 | I154: Hija 48 años | J154: 583.3935241 | K154: 752.1809998 | L154: 1023.279391 | M154: 495.8930072 | N154: 639.4006643 | P154: Hija 48 años | Q154: 622.6339278 | R154: 802.7744413 | S154: 1092.10754 | T154: 529.2479229 | U154: 682.4082384
B155: Hija 49 años | C155: =C54 -> 7159 | D155: 9128 | E155: 12477 | F155: 6086 | G155: 7759 | I155: Hija 49 años | J155: 609.3542806 | K155: 776.950115 | L155: 1062.007733 | M155: 518.0234882 | N155: 660.4246212 | P155: Hija 49 años | Q155: 650.3408651 | R155: 829.2095847 | S155: 1133.44084 | T155: 552.8669514 | U155: 704.8463155
B156: Hija 50 años | C156: =C55 -> 7502 | D156: 9482 | E156: 13023 | F156: 6377 | G156: 8060 | I156: Hija 50 años | J156: 638.549492 | K156: 807.081616 | L156: 1108.481743 | M156: 542.7926034 | N156: 686.0449088 | P156: Hija 50 años | Q156: 681.4998142 | R156: 861.3678004 | S156: 1183.0408 | T156: 579.3020948 | U156: 732.189883
B157: Hija 51 años | C157: =C56 -> 7858 | D157: 10116 | E157: 13996 | F157: 6680 | G157: 8599 | I157: Hija 51 años | J157: 668.8512274 | K157: 861.0459426 | L157: 1191.300812 | M157: 568.5831254 | N157: 731.9230981 | P157: Hija 51 años | Q157: 713.8397148 | R157: 918.9618929 | S157: 1271.430472 | T157: 606.8273472 | U157: 781.1539459
B158: Hija 52 años | C158: =C57 -> 8265 | D158: 10575 | E158: 15040 | F158: 7026 | G158: 8989 | I158: Hija 52 años | J158: 703.4939418 | K158: 900.1147531 | L158: 1280.163204 | M158: 598.0336885 | N158: 765.1188195 | P158: Hija 52 años | Q158: 750.8125786 | R158: 960.6585624 | S158: 1366.269955 | T158: 638.2588236 | U158: 816.5824887
B159: Hija 53 años | C159: =C58 -> 8711 | D159: 10927 | E159: 15903 | F159: 7405 | G159: 9288 | I159: Hija 53 años | J159: 741.4562283 | K159: 930.0760196 | L159: 1353.619378 | M159: 630.2931203 | N159: 790.5688725 | P159: Hija 53 años | Q159: 791.3282967 | R159: 992.6350933 | S159: 1444.666962 | T159: 672.6880997 | U159: 843.7443714
B160: Hija 54 años | C160: =C59 -> 9181 | D160: 11397 | E160: 16683 | F160: 7804 | G160: 9688 | I160: Hija 54 años | J160: 781.4613284 | K160: 970.0811197 | L160: 1420.01082 | M160: 664.2548968 | N160: 824.6157663 | P160: Hija 54 años | Q160: 834.0242328 | R160: 1035.331029 | S160: 1515.524047 | T160: 708.9342242 | U160: 880.0813383
B161: Hija 55 años | C161: =C60 -> 9715 | D161: 11904 | E161: 17390 | F161: 8258 | G161: 10119 | I161: Hija 55 años | J161: 826.9139316 | K161: 1013.235558 | L161: 1480.188705 | M161: 702.8981212 | N161: 861.3012943 | P161: Hija 55 años | Q161: 882.5340836 | R161: 1081.388135 | S161: 1579.749636 | T161: 750.1766817 | U161: 919.2344202
B162: Hija 56 años | C162: =C61 -> 10300 | D162: 12412 | E162: 17947 | F162: 8755 | G162: 10551 | I162: Hija 56 años | J162: 876.7075137 | K162: 1056.475113 | L162: 1527.599005 | M162: 745.2013866 | N162: 898.0719395 | P162: Hija 56 años | Q162: 935.6768977 | R162: 1127.536083 | S162: 1630.348862 | T162: 795.325363 | U162: 958.4783444
B163: Hija 57 años | C163: =C62 -> 10935 | D163: 12918 | E163: 18994 | F163: 9295 | G163: 10981 | I163: Hija 57 años | J163: 930.7569575 | K163: 1099.544433 | L163: 1616.716749 | M163: 791.1646932 | N163: 934.6723503 | P163: Hija 57 años | Q163: 993.3618326 | R163: 1173.502346 | S163: 1725.460873 | T163: 844.3802684 | U163: 997.5405838
B164: Hija 58 años | C164: =C63 -> 11694 | D164: 13514 | E164: 20054 | F164: 9940 | G164: 11487 | I164: Hija 58 años | J164: 995.3609383 | K164: 1150.274305 | L164: 1706.941017 | M164: 846.0653093 | N164: 977.7416708 | P164: Hija 58 años | Q164: 1062.311227 | R164: 1227.644427 | S164: 1821.753836 | T164: 902.9736275 | U164: 1043.506847
B165: Hija 59 años | C165: =C64 -> 12398 | D165: 14528 | E165: 21166 | F165: 10539 | G165: 12349 | I165: Hija 59 años | J165: 1055.283471 | K165: 1236.58318 | L165: 1801.591382 | M165: 897.0505327 | N165: 1051.112727 | P165: Hija 59 años | Q165: 1126.264289 | R165: 1319.758638 | S165: 1922.770604 | T165: 957.3882354 | U165: 1121.813011
B166: Hija 60 años | C166: =C65 -> 13123 | D166: 15905 | E166: 22494 | F166: 11155 | G166: 13520 | I166: Hija 60 años | J166: 1116.993466 | K166: 1353.789612 | L166: 1914.627069 | M166: 949.482749 | N166: 1150.785008 | P166: Hija 60 años | Q166: 1192.125042 | R166: 1444.848646 | S166: 2043.409334 | T166: 1013.347164 | U166: 1228.189481
B167: Hija 61 años | C167: =C66 -> 14590 | D167: 16848 | E167: 23615 | F167: 12402 | G167: 14321 | I167: Hija 61 años | J167: 1241.860449 | K167: 1434.055164 | L167: 2010.043489 | M167: 1055.62394 | N167: 1218.963913 | P167: Hija 61 años | Q167: 1325.390868 | R167: 1530.513046 | S167: 2145.243683 | T167: 1126.627659 | U167: 1300.954257
B168: Hija 62 años | C168: =C67 -> 15661 | D168: 18547 | E168: 24966 | F168: 13312 | G168: 15765 | I168: Hija 62 años | J168: 1333.021007 | K168: 1578.669345 | L168: 2125.036872 | M168: 1133.080623 | N168: 1341.873199 | P168: Hija 62 años | Q168: 1422.683097 | R168: 1684.854313 | S168: 2267.971789 | T168: 1209.294258 | U168: 1432.130708
B169: Hija 63 años | C169: =C68 -> 16717 | D169: 19953 | E169: 26667 | F169: 14210 | G169: 16961 | I169: Hija 63 años | J169: 1422.904806 | K169: 1698.344177 | L169: 2269.821288 | M169: 1209.5159 | N169: 1443.673412 | P169: Hija 63 años | Q169: 1518.612689 | R169: 1812.578751 | S169: 2422.494741 | T169: 1290.870749 | U169: 1540.778239
B170: Hija 64 años | C170: =C69 -> 18053 | D170: 21354 | E170: 28786 | F170: 15346 | G170: 18151 | I170: Hija 64 años | J170: 1536.621431 | K170: 1817.593422 | L170: 2450.184708 | M170: 1306.209078 | N170: 1544.96292 | P170: Hija 64 años | Q170: 1639.978159 | R170: 1939.848978 | S170: 2614.989823 | T170: 1394.067735 | U170: 1648.880716
B171: Hija 65 años | C171: =C70 -> 19659 | D171: 23169 | E171: 30766 | F171: 16711 | G171: 19694 | I171: Hija 65 años | J171: 1673.31971 | K171: 1972.081202 | L171: 2618.716832 | M171: 1422.394103 | N171: 1676.298813 | P171: Hija 65 años | Q171: 1785.871081 | R171: 2104.727965 | S171: 2794.857809 | T171: 1518.067635 | U171: 1789.050565
B172: Hija 66 años | C172: =C71 -> 23046 | D172: 25511 | E172: 35966 | F172: 19590 | G172: 21685 | I172: Hija 66 años | J172: 1961.611783 | K172: 2171.425765 | L172: 3061.32645 | M172: 1667.446621 | N172: 1845.767227 | P172: Hija 66 años | Q172: 2093.554348 | R172: 2317.480907 | S172: 3267.238379 | T172: 1779.602954 | U172: 1969.917818
B173: Hija 67 años | C173: =C72 -> 24978 | D173: 28084 | E173: 38137 | F173: 21232 | G173: 23872 | I173: Hija 67 años | J173: 2126.058279 | K173: 2390.432409 | L173: 3246.115966 | M173: 1807.209119 | N173: 2031.918618 | P173: Hija 67 años | Q173: 2269.061898 | R173: 2551.218446 | S173: 3464.457267 | T173: 1928.766203 | U173: 2168.590185
B174: Hija 68 años | C174: =C73 -> 27074 | D174: 30813 | E174: 40590 | F174: 23013 | G174: 26192 | I174: Hija 68 años | J174: 2304.464002 | K174: 2622.717342 | L174: 3454.908542 | M174: 1958.802914 | N174: 2229.390602 | P174: Hija 68 años | Q174: 2459.467605 | R174: 2799.127403 | S174: 3687.293716 | T174: 2090.556548 | U174: 2379.344593
B175: Hija 69 años | C175: =C74 -> 28994 | D175: 33086 | E175: 44348 | F175: 24645 | G175: 28124 | I175: Hija 69 años | J175: 2467.889092 | K175: 2816.188815 | L175: 3774.779108 | M175: 2097.71424 | N175: 2393.837098 | P175: Hija 69 años | Q175: 2633.885046 | R175: 3005.612217 | S175: 4028.67952 | T175: 2238.811373 | U175: 2554.852143
B176: Hija 70 años | C176: =C75 -> 31078 | D176: 35114 | E176: 47666 | F176: 26417 | G176: 29847 | I176: Hija 70 años | J176: 2645.273409 | K176: 2988.806567 | L176: 4057.198092 | M176: 2248.541979 | N176: 2540.494093 | P176: Hija 70 años | Q176: 2823.200643 | R176: 3189.840639 | S176: 4330.094661 | T176: 2399.784137 | U176: 2711.373628
B177: Hija 71 años | C177: =C76 -> 33313 | D177: 39461 | E177: 51716 | F177: 28317 | G177: 33542 | I177: Hija 71 años | J177: 2835.510427 | K177: 3358.811184 | L177: 4401.922891 | M177: 2410.264725 | N177: 2855.002274 | P177: Hija 71 años | Q177: 3026.233446 | R177: 3584.732627 | S177: 4698.006451 | T177: 2572.384729 | U177: 3047.036359
B178: Hija 72 años | C178: =C77 -> 33313 | D178: 39461 | E178: 51716 | F178: 28317 | G178: 33542 | I178: Hija 72 años | J178: 2835.510427 | K178: 3358.811184 | L178: 4401.922891 | M178: 2410.264725 | N178: 2855.002274 | P178: Hija 72 años | Q178: 3026.233446 | R178: 3584.732627 | S178: 4698.006451 | T178: 2572.384729 | U178: 3047.036359
B179: Hija 73 años | C179: =C78 -> 33313 | D179: 39461 | E179: 51716 | F179: 28317 | G179: 33542 | I179: Hija 73 años | J179: 2835.510427 | K179: 3358.811184 | L179: 4401.922891 | M179: 2410.264725 | N179: 2855.002274 | P179: Hija 73 años | Q179: 3026.233446 | R179: 3584.732627 | S179: 4698.006451 | T179: 2572.384729 | U179: 3047.036359
B180: Hija 74 años | C180: =C79 -> 33313 | D180: 39461 | E180: 51716 | F180: 28317 | G180: 33542 | I180: Hija 74 años | J180: 2835.510427 | K180: 3358.811184 | L180: 4401.922891 | M180: 2410.264725 | N180: 2855.002274 | P180: Hija 74 años | Q180: 3026.233446 | R180: 3584.732627 | S180: 4698.006451 | T180: 2572.384729 | U180: 3047.036359
B181: Hija 75 años | C181: =C80 -> 33313 | D181: 39461 | E181: 51716 | F181: 28317 | G181: 33542 | I181: Hija 75 años | J181: 2835.510427 | K181: 3358.811184 | L181: 4401.922891 | M181: 2410.264725 | N181: 2855.002274 | P181: Hija 75 años | Q181: 3026.233446 | R181: 3584.732627 | S181: 4698.006451 | T181: 2572.384729 | U181: 3047.036359
B182: Hija 76 años | C182: =C81 -> 35245 | D182: 42054 | E182: 58939 | F182: 29959 | G182: 35746 | I182: Hija 76 años | J182: 2999.956924 | K182: 3579.520173 | L182: 5016.724675 | M182: 2550.027224 | N182: 3042.600659 | P182: Hija 76 años | Q182: 3201.740996 | R182: 3820.287015 | S182: 5354.16123 | T182: 2721.547978 | U182: 3247.253047
B183: Hija 77 años | C183: =C82 -> 35245 | D183: 42054 | E183: 58939 | F183: 29959 | G183: 35746 | I183: Hija 77 años | J183: 2999.956924 | K183: 3579.520173 | L183: 5016.724675 | M183: 2550.027224 | N183: 3042.600659 | P183: Hija 77 años | Q183: 3201.740996 | R183: 3820.287015 | S183: 5354.16123 | T183: 2721.547978 | U183: 3247.253047
B184: Hija 78 años | C184: =C83 -> 35245 | D184: 42054 | E184: 58939 | F184: 29959 | G184: 35746 | I184: Hija 78 años | J184: 2999.956924 | K184: 3579.520173 | L184: 5016.724675 | M184: 2550.027224 | N184: 3042.600659 | P184: Hija 78 años | Q184: 3201.740996 | R184: 3820.287015 | S184: 5354.16123 | T184: 2721.547978 | U184: 3247.253047
B185: Hija 79 años | C185: =C84 -> 35245 | D185: 42054 | E185: 58939 | F185: 29959 | G185: 35746 | I185: Hija 79 años | J185: 2999.956924 | K185: 3579.520173 | L185: 5016.724675 | M185: 2550.027224 | N185: 3042.600659 | P185: Hija 79 años | Q185: 3201.740996 | R185: 3820.287015 | S185: 5354.16123 | T185: 2721.547978 | U185: 3247.253047
B186: Hija 80 años | C186: =C85 -> 35245 | D186: 42054 | E186: 58939 | F186: 29959 | G186: 35746 | I186: Hija 80 años | J186: 2999.956924 | K186: 3579.520173 | L186: 5016.724675 | M186: 2550.027224 | N186: 3042.600659 | P186: Hija 80 años | Q186: 3201.740996 | R186: 3820.287015 | S186: 5354.16123 | T186: 2721.547978 | U186: 3247.253047
B187: Hija 81 años | C187: =C86 -> 37317 | D187: 46576 | E187: 65002 | F187: 31720 | G187: 39590 | I187: Hija 81 años | J187: 3176.319834 | K187: 3964.420306 | L187: 5532.790466 | M187: 2699.918673 | N187: 3369.791307 | P187: Hija 81 años | Q187: 3389.966485 | R187: 4231.076426 | S187: 5904.938806 | T187: 2881.521475 | U187: 3596.451299
B188: Hija 82 años | C188: =C87 -> 37317 | D188: 46576 | E188: 65002 | F188: 31720 | G188: 39590 | I188: Hija 82 años | J188: =C188*$J$2 -> 3176.319834 | K188: =D188*$J$2 -> 3964.420306 | L188: =E188*$J$2 -> 5532.790466 | M188: =F188*$J$2 -> 2699.918673 | N188: =G188*$J$2 -> 3369.791307 | P188: Hija 82 años | Q188: =C188*$Q$2 -> 3389.966485 | R188: =D188*$Q$2 -> 4231.076426 | S188: =E188*$Q$2 -> 5904.938806 | T188: =F188*$Q$2 -> 2881.521475 | U188: =G188*$Q$2 -> 3596.451299
B189: Hija 83 años | C189: =C88 -> 37317 | D189: 46576 | E189: 65002 | F189: 31720 | G189: 39590 | I189: Hija 83 años | J189: 3176.319834 | K189: 3964.420306 | L189: 5532.790466 | M189: 2699.918673 | N189: 3369.791307 | P189: Hija 83 años | Q189: 3389.966485 | R189: 4231.076426 | S189: 5904.938806 | T189: 2881.521475 | U189: 3596.451299
B190: Hija 84 años | C190: =C89 -> 37317 | D190: 46576 | E190: 65002 | F190: 31720 | G190: 39590 | I190: Hija 84 años | J190: 3176.319834 | K190: 3964.420306 | L190: 5532.790466 | M190: 2699.918673 | N190: 3369.791307 | P190: Hija 84 años | Q190: 3389.966485 | R190: 4231.076426 | S190: 5904.938806 | T190: 2881.521475 | U190: 3596.451299
B191: Hija 85 años | C191: =C90 -> 37317 | D191: 46576 | E191: 65002 | F191: 31720 | G191: 39590 | I191: Hija 85 años | J191: 3176.319834 | K191: 3964.420306 | L191: 5532.790466 | M191: 2699.918673 | N191: 3369.791307 | P191: Hija 85 años | Q191: 3389.966485 | R191: 4231.076426 | S191: 5904.938806 | T191: 2881.521475 | U191: 3596.451299
B192: Hija 86 años | C192: =C91 -> 37317 | D192: 46576 | E192: 65002 | F192: 31720 | G192: 39590 | I192: Hija 86 años | J192: 3176.319834 | K192: 3964.420306 | L192: 5532.790466 | M192: 2699.918673 | N192: 3369.791307 | P192: Hija 86 años | Q192: 3389.966485 | R192: 4231.076426 | S192: 5904.938806 | T192: 2881.521475 | U192: 3596.451299
B193: Hija 87 años | C193: =C92 -> 37317 | D193: 46576 | E193: 65002 | F193: 31720 | G193: 39590 | I193: Hija 87 años | J193: 3176.319834 | K193: 3964.420306 | L193: 5532.790466 | M193: 2699.918673 | N193: 3369.791307 | P193: Hija 87 años | Q193: 3389.966485 | R193: 4231.076426 | S193: 5904.938806 | T193: 2881.521475 | U193: 3596.451299
B194: Hija 88 años | C194: =C93 -> 37317 | D194: 46576 | E194: 65002 | F194: 31720 | G194: 39590 | I194: Hija 88 años | J194: 3176.319834 | K194: 3964.420306 | L194: 5532.790466 | M194: 2699.918673 | N194: 3369.791307 | P194: Hija 88 años | Q194: 3389.966485 | R194: 4231.076426 | S194: 5904.938806 | T194: 2881.521475 | U194: 3596.451299
B195: Hija 89 años | C195: =C94 -> 37317 | D195: 46576 | E195: 65002 | F195: 31720 | G195: 39590 | I195: Hija 89 años | J195: 3176.319834 | K195: 3964.420306 | L195: 5532.790466 | M195: 2699.918673 | N195: 3369.791307 | P195: Hija 89 años | Q195: 3389.966485 | R195: 4231.076426 | S195: 5904.938806 | T195: 2881.521475 | U195: 3596.451299
B196: Hija 90 años | C196: =C95 -> 37317 | D196: 46576 | E196: 65002 | F196: 31720 | G196: 39590 | I196: Hija 90 años | J196: 3176.319834 | K196: 3964.420306 | L196: 5532.790466 | M196: 2699.918673 | N196: 3369.791307 | P196: Hija 90 años | Q196: 3389.966485 | R196: 4231.076426 | S196: 5904.938806 | T196: 2881.521475 | U196: 3596.451299
B197: Hija 91 años | C197: =C96 -> 37317 | D197: 46576 | E197: 65002 | F197: 31720 | G197: 39590 | I197: Hija 91 años | J197: 3176.319834 | K197: 3964.420306 | L197: 5532.790466 | M197: 2699.918673 | N197: 3369.791307 | P197: Hija 91 años | Q197: 3389.966485 | R197: 4231.076426 | S197: 5904.938806 | T197: 2881.521475 | U197: 3596.451299
B198: Hija 92 años | C198: =C97 -> 37317 | D198: 46576 | E198: 65002 | F198: 31720 | G198: 39590 | I198: Hija 92 años | J198: 3176.319834 | K198: 3964.420306 | L198: 5532.790466 | M198: 2699.918673 | N198: 3369.791307 | P198: Hija 92 años | Q198: 3389.966485 | R198: 4231.076426 | S198: 5904.938806 | T198: 2881.521475 | U198: 3596.451299
B199: Hija 93 años | C199: =C98 -> 37317 | D199: 46576 | E199: 65002 | F199: 31720 | G199: 39590 | I199: Hija 93 años | J199: 3176.319834 | K199: 3964.420306 | L199: 5532.790466 | M199: 2699.918673 | N199: 3369.791307 | P199: Hija 93 años | Q199: 3389.966485 | R199: 4231.076426 | S199: 5904.938806 | T199: 2881.521475 | U199: 3596.451299
B200: Hija 94 años | C200: =C99 -> 37317 | D200: 46576 | E200: 65002 | F200: 31720 | G200: 39590 | I200: Hija 94 años | J200: 3176.319834 | K200: 3964.420306 | L200: 5532.790466 | M200: 2699.918673 | N200: 3369.791307 | P200: Hija 94 años | Q200: 3389.966485 | R200: 4231.076426 | S200: 5904.938806 | T200: 2881.521475 | U200: 3596.451299
... 107 more rows
